[Event "Reykjavik Open 2025"]
[Site "Reykjavik"]
[Date "2025.04.10"]
[Round "3.15"]
[White "Doran, Chris"]
[Black "Burgalat, Eliot"]
[Result "0-1"]
[Annotator "ChessBase"]
[ECO "B33"]
[WhiteElo "1957"]
[BlackElo "2119"]
[PlyCount "94"]
[EventDate "2025.04.09"]
[EventType "swiss"]
[EventCountry "ISL"]
[SourceTitle "playchess.com"]
[Source "ChessBase"]
[SourceQuality "1"]
[TimeControl "40/5400+30:1800+30"]

1. e4 {[%emt 0:00:02]} c5 {[%emt 0:00:05]} 2. Nf3 {[%emt 0:00:10]} e6 {[%emt 0:00:05]} 3. Nc3 {[%emt 0:00:11]} Nc6 {[%emt 0:00:04]} 4. d4 {[%emt 0:00:08]} cxd4 {[%emt 0:00:07]} 5. Nxd4 {[%emt 0:00:06]} Nf6 {[%emt 0:00:03]} 6. Ndb5 {[%emt 0:00:44]} d6 {[%emt 0:00:07]} 7. Bf4 {[%emt 0:00:22]} e5 {[%emt 0:00:03]} 8. Bg5 {[%emt 0:00:06]} a6 {[%emt 0:00:04]} 9. Na3 {[%emt 0:00:09]} b5 {[%emt 0:00:07]} 10. Bxf6 {[%emt 0:00:09]} gxf6 {[%emt 0:00:06]} 11. Nd5 {[%emt 0:00:12]} f5 {[%emt 0:00:07]} 12. c3 {[%emt 0:00:13]} Bg7 {[%emt 0:00:20]} 13. exf5 {[%emt 0:00:12]} Bxf5 {[%emt 0:13:13]} 14. Nc2 {[%emt 0:00:22]} O-O {[%emt 0:01:14]} 15. Nce3 {[%emt 0:00:11]} Be6 {[%emt 0:04:58]} 16. Bd3 {[%emt 0:00:49]} f5 {[%emt 0:01:16]} 17. O-O {[%emt 0:00:29]} Ne7 {[%emt 0:12:02]} 18. Nxe7+ {[%emt 0:01:15]} Qxe7 {[%emt 0:00:08]} 19. Bxf5 {[%emt 0:00:04]} Kh8 {[%emt 0:07:42]} 20. Qg4 {[%emt 0:09:19]} Bg8 {[%emt 0:04:14]} 21. a4 {[%emt 0:15:37]} d5 {[%emt 0:05:02]} 22. axb5 {[%emt 0:09:09]} axb5 {[%emt 0:00:14]} 23. Rxa8 {[%emt 0:03:15]} Rxa8 {[%emt 0:00:04]} 24. Bd3 {[%emt 0:05:46]} Qc5 {[%emt 0:09:44]} 25. Nf5 {[%emt 0:07:14]} Ra7 {[%emt 0:01:05]} 26. Nxg7 {[%emt 0:01:06]} Rxg7 {[%emt 0:00:06]} 27. Qf5 {[%emt 0:00:13]} d4 {[%emt 0:03:55]} 28. g3 {[%emt 0:09:38]} dxc3 {[%emt 0:01:45]} 29. bxc3 {[%emt 0:01:05]} Qxc3 {[%emt 0:12:24]} 30. Bxb5 {[%emt 0:00:47]} Qc5 {[%emt 0:03:14]} 31. Bd3 {[%emt 0:01:53]} Rf7 {[%emt 0:00:40]} 32. Qe4 {[%emt 0:01:39]} Rf6 {[%emt 0:00:51]} 33. Qe3 {[%emt 0:03:25]} Qxe3 {[%emt 0:05:01]} 34. fxe3 {[%emt 0:00:02]} Rxf1+ {[%emt 0:00:11]} 35. Kxf1 {[%emt 0:01:26]} Kg7 {[%emt 0:00:06]} 36. Be4 {[%emt 0:02:21]} h6 {[%emt 0:00:23]} 37. Kf2 {[%emt 0:01:17]} Kf6 {[%emt 0:00:11]} 38. Kf3 {[%emt 0:01:37]} Be6 {[%emt 0:01:29]} 39. h4 {[%emt 0:03:27]} Bd7 {[%emt 0:01:15]} 40. Bd5 {[%emt 0:00:53]} Bf5 {[%emt 0:01:23]} 41. Bc6 {[%emt 0:32:43]} Bc2 {[%emt 0:31:23]} 42. Kg4 {[%emt 0:06:29]} Bd1+ {[%emt 0:00:14]} 43. Bf3 {[%emt 0:00:42]} h5+ {[%emt 0:00:07]} 44. Kxh5 {[%emt 0:00:07]} Bxf3+ {[%emt 0:00:04]} 45. Kh6 {[%emt 0:02:53]} e4 {[%emt 0:03:58]} 46. Kh7 {[%emt 0:02:38]} Kf5 {[%emt 0:00:22]} 47. Kh6 {[%emt 0:00:29]} Kg4 {[%emt 0:00:30]} 0-1

[Event "Reykjavik Open 2025"]
[Site "Reykjavik"]
[Date "2025.04.10"]
[Round "3.16"]
[White "Ponnio, Toni"]
[Black "Juodziukynas, Aidas"]
[Result "1-0"]
[Annotator "ChessBase"]
[ECO "E21"]
[WhiteElo "2103"]
[BlackElo "1956"]
[PlyCount "47"]
[EventDate "2025.04.09"]
[EventType "swiss"]
[EventCountry "ISL"]
[SourceTitle "playchess.com"]
[Source "ChessBase"]
[SourceQuality "1"]
[TimeControl "40/5400+30:1800+30"]

1. d4 {[%emt 0:00:04]} Nf6 {[%emt 0:00:13]} 2. c4 {[%emt 0:00:12]} e6 {[%emt 0:00:17]} 3. Nc3 {[%emt 0:00:57]} Bb4 {[%emt 0:00:37]} 4. g3 {[%emt 0:00:22]} c5 {[%emt 0:06:25]} 5. Nf3 {[%emt 0:00:17]} b6 {[%emt 0:01:17]} 6. Bg2 {[%emt 0:03:51]} Bb7 {[%emt 0:02:11]} 7. O-O {[%emt 0:01:27]} O-O {[%emt 0:01:15]} 8. d5 {[%emt 0:10:47]} Bxc3 {[%emt 0:02:10]} 9. bxc3 {[%emt 0:00:19]} exd5 {[%emt 0:01:27]} 10. Nh4 {[%emt 0:00:10]} Ne4 {[%emt 0:06:11]} 11. cxd5 {[%emt 0:01:20]} Re8 {[%emt 0:03:44]} 12. Bxe4 {[%emt 0:17:57]} Rxe4 {[%emt 0:00:09]} 13. f3 {[%emt 0:00:06]} Re5 {[%emt 0:05:42]} 14. e4 {[%emt 0:02:57]} Qf6 {[%emt 0:13:29]} 15. Bf4 {[%emt 0:08:17]} Rh5 {[%emt 0:00:53]} 16. e5 {[%emt 0:06:00]} Qd8 {[%emt 0:03:20]} 17. Ng2 {[%emt 0:01:07]} g5 {[%emt 0:02:59]} 18. Be3 {[%emt 0:01:31]} d6 {[%emt 0:03:39]} 19. f4 {[%emt 0:00:37]} Rh6 {[%emt 0:00:01]} 20. fxg5 {[%emt 0:01:29]} Rg6 {[%emt 0:00:12]} 21. Nh4 {[%emt 0:00:29]} dxe5 {[%emt 0:03:36]} 22. c4 {[%emt 0:04:24]} Rg7 {[%emt 0:01:39]} 23. Nf5 {[%emt 0:00:37]} Rg6 {[%emt 0:00:37]} 24. Nh6+ {[%emt 0:00:23]} 1-0

[Event "Reykjavik Open 2025"]
[Site "Reykjavik"]
[Date "2025.04.10"]
[Round "3.17"]
[White "Gayon, Benoit"]
[Black "Hartung, Thomas"]
[Result "0-1"]
[Annotator "ChessBase"]
[ECO "C02"]
[WhiteElo "1953"]
[BlackElo "2118"]
[PlyCount "86"]
[EventDate "2025.04.09"]
[EventType "swiss"]
[EventCountry "ISL"]
[SourceTitle "playchess.com"]
[Source "ChessBase"]
[SourceQuality "1"]
[TimeControl "40/5400+30:1800+30"]

1. e4 {[%emt 0:00:03]} e6 {[%emt 0:00:04]} 2. d4 {[%emt 0:00:08]} d5 {[%emt 0:00:03]} 3. e5 {[%emt 0:00:07]} c5 {[%emt 0:00:09]} 4. c3 {[%emt 0:00:06]} Nc6 {[%emt 0:00:07]} 5. Be3 {[%emt 0:00:08]} Qb6 {[%emt 0:01:42]} 6. Qd2 {[%emt 0:00:08]} f6 {[%emt 0:00:56]} 7. Nf3 {[%emt 0:01:39]} fxe5 {[%emt 0:01:31]} 8. Nxe5 {[%emt 0:01:29]} Nf6 {[%emt 0:01:10]} 9. dxc5 {[%emt 0:08:27]} Bxc5 {[%emt 0:00:21]} 10. Bxc5 {[%emt 0:00:09]} Qxc5 {[%emt 0:00:02]} 11. Nxc6 {[%emt 0:00:39]} bxc6 {[%emt 0:00:27]} 12. Qd4 {[%emt 0:00:49]} Qxd4 {[%emt 0:06:58]} 13. cxd4 {[%emt 0:00:34]} Rb8 {[%emt 0:00:02]} 14. Nd2 {[%emt 0:00:28]} Rxb2 {[%emt 0:02:26]} 15. Bd3 {[%emt 0:03:14]} O-O {[%emt 0:05:17]} 16. Nf3 {[%emt 0:04:23]} Ne4 {[%emt 0:10:15]} 17. Rf1 {[%emt 0:08:03]} Nc3 {[%emt 0:08:15]} 18. a3 {[%emt 0:03:53]} Rf4 {[%emt 0:09:44]} 19. Rh1 {[%emt 0:06:43]} Nb5 {[%emt 0:00:00]} 20. a4 {[%emt 0:02:45]} Nxd4 {[%emt 0:00:00]} 21. O-O-O {[%emt 0:01:06]} Rb4 {[%emt 0:00:56]} 22. Nxd4 {[%emt 0:01:56]} Rfxd4 {[%emt 0:00:57]} 23. a5 {[%emt 0:00:23]} Rf4 {[%emt 0:01:21]} 24. f3 {[%emt 0:02:55]} Bd7 {[%emt 0:02:03]} 25. Kd2 {[%emt 0:00:46]} c5 {[%emt 0:00:39]} 26. Ke3 {[%emt 0:01:02]} Rf8 {[%emt 0:00:16]} 27. Rc1 {[%emt 0:04:18]} Rc8 {[%emt 0:02:33]} 28. Rb1 {[%emt 0:01:54]} Rcb8 {[%emt 0:00:36]} 29. Rxb4 {[%emt 0:01:31]} Rxb4 {[%emt 0:01:46]} 30. Rc1 {[%emt 0:00:29]} c4 {[%emt 0:00:21]} 31. Bc2 {[%emt 0:00:08]} e5 {[%emt 0:05:18]} 32. f4 {[%emt 0:03:29]} exf4+ {[%emt 0:02:07]} 33. Kd4 {[%emt 0:02:08]} Be6 {[%emt 0:03:50]} 34. Re1 {[%emt 0:01:02]} Kf7 {[%emt 0:00:43]} 35. Bxh7 {[%emt 0:01:56]} Rb2 {[%emt 0:00:45]} 36. Bg8+ {[%emt 0:02:09]} Kxg8 {[%emt 0:00:30]} 37. Rxe6 {[%emt 0:00:07]} Rd2+ {[%emt 0:00:55]} 38. Kc5 {[%emt 0:01:40]} c3 {[%emt 0:00:30]} 39. Kb5 {[%emt 0:01:14]} Rb2+ {[%emt 0:02:13]} 40. Ka6 {[%emt 0:00:57]} c2 {[%emt 0:00:05]} 41. Rc6 {[%emt 0:30:09]} d4 {[%emt 0:30:04]} 42. Kxa7 {[%emt 0:00:41]} d3 {[%emt 0:00:08]} 43. a6 {[%emt 0:03:35]} d2 {[%emt 0:00:10]} 0-1

[Event "Reykjavik Open 2025"]
[Site "Reykjavik"]
[Date "2025.04.10"]
[Round "3.18"]
[White "Bernhard, Sebastian"]
[Black "Bourgois, Bastien"]
[Result "1/2-1/2"]
[Annotator "ChessBase"]
[ECO "B33"]
[WhiteElo "1914"]
[BlackElo "2112"]
[PlyCount "134"]
[EventDate "2025.04.09"]
[EventType "swiss"]
[EventCountry "ISL"]
[SourceTitle "playchess.com"]
[Source "ChessBase"]
[SourceQuality "1"]
[TimeControl "40/5400+30:1800+30"]

1. e4 {[%emt 0:00:02]} c5 {[%emt 0:00:15]} 2. Nf3 {[%emt 0:00:41]} Nc6 {[%emt 0:00:06]} 3. d4 {[%emt 0:01:42]} cxd4 {[%emt 0:00:06]} 4. Nxd4 {[%emt 0:00:05]} Nf6 {[%emt 0:00:09]} 5. Nc3 {[%emt 0:00:06]} e5 {[%emt 0:00:06]} 6. Ndb5 {[%emt 0:06:03]} d6 {[%emt 0:00:08]} 7. Bg5 {[%emt 0:00:22]} a6 {[%emt 0:00:08]} 8. Na3 {[%emt 0:00:02]} b5 {[%emt 0:00:09]} 9. Nd5 {[%emt 0:01:42]} Be7 {[%emt 0:00:12]} 10. Bxf6 {[%emt 0:00:29]} Bxf6 {[%emt 0:00:08]} 11. c3 {[%emt 0:01:08]} Rb8 {[%emt 0:00:52]} 12. Nc2 {[%emt 0:02:41]} Bg5 {[%emt 0:01:07]} 13. g3 {[%emt 0:04:27]} O-O {[%emt 0:02:48]} 14. Bg2 {[%emt 0:09:01]} a5 {[%emt 0:07:32]} 15. b3 {[%emt 0:10:29]} Ne7 {[%emt 0:03:55]} 16. Nce3 {[%emt 0:11:40]} Bxe3 {[%emt 0:00:37]} 17. Nxe3 {[%emt 0:01:15]} Be6 {[%emt 0:04:27]} 18. O-O {[%emt 0:01:21]} Qb6 {[%emt 0:04:11]} 19. Qd3 {[%emt 0:06:55]} g6 {[%emt 0:03:32]} 20. Rfd1 {[%emt 0:04:31]} Rfd8 {[%emt 0:01:53]} 21. Rd2 {[%emt 0:21:55]} Rbc8 {[%emt 0:08:22]} 22. Bf1 {[%emt 0:03:34]} b4 {[%emt 0:04:37]} 23. c4 {[%emt 0:01:56]} Nc6 {[%emt 0:00:57]} 24. Nc2 {[%emt 0:00:59]} Kg7 {[%emt 0:01:20]} 25. Rad1 {[%emt 0:00:42]} Kf8 {[%emt 0:13:14]} 26. Kg2 {[%emt 0:03:05]} Ke7 {[%emt 0:02:40]} 27. Be2 {[%emt 0:02:15]} Ra8 {[%emt 0:02:41]} 28. Ne3 {[%emt 0:02:42]} Nd4 {[%emt 0:02:04]} 29. Bg4 {[%emt 0:00:49]} a4 {[%emt 0:04:09]} 30. Bxe6 {[%emt 0:00:19]} fxe6 {[%emt 0:00:09]} 31. Nc2 {[%emt 0:00:29]} axb3 {[%emt 0:01:41]} 32. axb3 {[%emt 0:00:23]} Nc6 {[%emt 0:06:52]} 33. Qf3 {[%emt 0:00:07]} Ra2 {[%emt 0:06:05]} 34. Qg4 {[%emt 0:00:31]} Rf8 {[%emt 0:11:04]} 35. Qh4+ {[%emt 0:01:45]} Ke8 {[%emt 0:01:32]} 36. Qxh7 {[%emt 0:00:02]} Ne7 {[%emt 0:01:57]} 37. Ne3 {[%emt 0:00:49]} Qa7 {[%emt 0:05:06]} 38. Qh4 {[%emt 0:01:10]} Qa3 {[%emt 0:00:00]} 39. Rxa2 {[%emt 0:00:15]} Qxa2 {[%emt 0:00:00]} 40. Ng4 {[%emt 0:00:28]} Qxb3 {[%emt 0:02:07]} 41. Rxd6 {[%emt 0:11:48]} Qxc4 {[%emt 0:18:17]} 42. Nf6+ {[%emt 0:04:42]} Rxf6 {[%emt 0:00:07]} 43. Qxf6 {[%emt 0:00:04]} Qxe4+ {[%emt 0:00:10]} 44. Qf3 {[%emt 0:05:49]} Qc4 {[%emt 0:00:59]} 45. Qa8+ {[%emt 0:01:26]} Kf7 {[%emt 0:00:35]} 46. Qf3+ {[%emt 0:03:31]} Ke8 {[%emt 0:01:43]} 47. Qa8+ {[%emt 0:01:15]} Kf7 {[%emt 0:00:02]} 48. Rd8 {[%emt 0:01:23]} b3 {[%emt 0:07:30]} 49. Rf8+ {[%emt 0:02:07]} Kg7 {[%emt 0:00:02]} 50. Rb8 {[%emt 0:02:08]} Qd5+ {[%emt 0:06:31]} 51. Qxd5 {[%emt 0:00:17]} exd5 {[%emt 0:00:02]} 52. Rxb3 {[%emt 0:00:13]} Kf6 {[%emt 0:00:14]} 53. Rb6+ {[%emt 0:00:21]} Kf5 {[%emt 0:00:25]} 54. f3 {[%emt 0:00:40]} e4 {[%emt 0:01:20]} 55. fxe4+ {[%emt 0:01:01]} dxe4 {[%emt 0:00:03]} 56. Rb5+ {[%emt 0:00:36]} Kf6 {[%emt 0:00:36]} 57. Kf2 {[%emt 0:00:42]} Nf5 {[%emt 0:00:05]} 58. Rb6+ {[%emt 0:00:45]} Kg5 {[%emt 0:00:24]} 59. h4+ {[%emt 0:00:36]} Kh5 {[%emt 0:00:18]} 60. Re6 {[%emt 0:00:57]} e3+ {[%emt 0:00:03]} 61. Ke1 {[%emt 0:00:45]} Nxg3 {[%emt 0:00:17]} 62. Rxe3 {[%emt 0:00:16]} Nf5 {[%emt 0:00:10]} 63. Re4 {[%emt 0:00:39]} Nxh4 {[%emt 0:00:11]} 64. Kf2 {[%emt 0:00:18]} g5 {[%emt 0:00:24]} 65. Ra4 {[%emt 0:00:20]} Nf5 {[%emt 0:00:31]} 66. Kg2 {[%emt 0:00:51]} g4 {[%emt 0:00:48]} 67. Rxg4 {[%emt 0:00:52]} Kxg4 {[%emt 0:00:04]} 1/2-1/2

[Event "Reykjavik Open 2025"]
[Site "Reykjavik"]
[Date "2025.04.10"]
[Round "3.19"]
[White "Ravi Krishna G"]
[Black "Aas, Robert"]
[Result "1-0"]
[Annotator "ChessBase"]
[ECO "E91"]
[WhiteElo "2100"]
[BlackElo "1898"]
[PlyCount "117"]
[EventDate "2025.04.09"]
[EventType "swiss"]
[EventCountry "ISL"]
[SourceTitle "playchess.com"]
[Source "ChessBase"]
[SourceQuality "1"]
[TimeControl "40/5400+30:1800+30"]

1. d4 {[%emt 0:00:36]} Nf6 {[%emt 0:00:10]} 2. c4 {[%emt 0:00:05]} g6 {[%emt 0:00:10]} 3. Nc3 {[%emt 0:00:10]} Bg7 {[%emt 0:00:09]} 4. e4 {[%emt 0:00:05]} d6 {[%emt 0:00:09]} 5. Be2 {[%emt 0:00:34]} O-O {[%emt 0:00:14]} 6. h3 {[%emt 0:00:18]} c5 {[%emt 0:01:38]} 7. d5 {[%emt 0:01:14]} e6 {[%emt 0:00:11]} 8. Nf3 {[%emt 0:01:20]} exd5 {[%emt 0:00:09]} 9. exd5 {[%emt 0:00:17]} Re8 {[%emt 0:03:53]} 10. O-O {[%emt 0:02:40]} Na6 {[%emt 0:00:09]} 11. Bd3 {[%emt 0:02:53]} Nc7 {[%emt 0:01:16]} 12. a4 {[%emt 0:01:02]} b6 {[%emt 0:00:17]} 13. Bf4 {[%emt 0:00:47]} a6 {[%emt 0:00:25]} 14. Re1 {[%emt 0:07:03]} Rb8 {[%emt 0:06:41]} 15. Rxe8+ {[%emt 0:06:55]} Nfxe8 {[%emt 0:02:33]} 16. Qe2 {[%emt 0:05:04]} Bb7 {[%emt 0:08:05]} 17. Qd2 {[%emt 0:18:18]} b5 {[%emt 0:08:07]} 18. cxb5 {[%emt 0:06:47]} axb5 {[%emt 0:00:18]} 19. Nxb5 {[%emt 0:04:25]} Nxd5 {[%emt 0:01:40]} 20. Bg3 {[%emt 0:01:51]} Qf6 {[%emt 0:04:25]} 21. Be4 {[%emt 0:07:30]} Qxb2 {[%emt 0:05:13]} 22. Qxb2 {[%emt 0:01:17]} Bxb2 {[%emt 0:00:10]} 23. Rb1 {[%emt 0:01:23]} Be5 {[%emt 0:12:54]} 24. Nxe5 {[%emt 0:06:44]} dxe5 {[%emt 0:00:19]} 25. Bxe5 {[%emt 0:07:16]} Rd8 {[%emt 0:03:14]} 26. Rc1 {[%emt 0:09:50]} f6 {[%emt 0:11:09]} 27. Bg3 {[%emt 0:00:33]} Nf4 {[%emt 0:01:30]} 28. Bxf4 {[%emt 0:03:03]} Bxe4 {[%emt 0:00:09]} 29. Rxc5 {[%emt 0:00:11]} Rd1+ {[%emt 0:02:19]} 30. Kh2 {[%emt 0:00:09]} Ra1 {[%emt 0:00:28]} 31. Nc3 {[%emt 0:01:22]} Bb7 {[%emt 0:00:44]} 32. a5 {[%emt 0:01:45]} Kf7 {[%emt 0:01:40]} 33. Nd5 {[%emt 0:01:54]} h5 {[%emt 0:09:43]} 34. Nb4 {[%emt 0:00:50]} g5 {[%emt 0:06:47]} 35. Bb8 {[%emt 0:00:30]} Rb1 {[%emt 0:05:27]} 36. Rb5 {[%emt 0:00:42]} Ba8 {[%emt 0:00:40]} 37. Rb6 {[%emt 0:01:00]} Rb3 {[%emt 0:01:35]} 38. Nc2 {[%emt 0:00:33]} Rxb6 {[%emt 0:01:55]} 39. axb6 {[%emt 0:00:01]} Ke6 {[%emt 0:00:32]} 40. Nb4 {[%emt 0:00:41]} Nd6 {[%emt 0:01:09]} 41. Na6 {[%emt 0:30:44]} Kd7 {[%emt 0:32:13]} 42. Nc5+ {[%emt 0:00:00]} Kc6 {[%emt 0:00:00]} 43. Bxd6 {[%emt 0:00:00]} Kxb6 {[%emt 0:00:00]} 44. Nd3 {[%emt 0:00:00]} Be4 {[%emt 0:00:00]} 45. Nc1 {[%emt 0:00:00]} f5 {[%emt 0:00:00]} 46. Be7 {[%emt 0:00:00]} g4 {[%emt 0:00:00]} 47. h4 {[%emt 0:00:00]} Kc6 {[%emt 0:00:00]} 48. Ne2 {[%emt 0:00:00]} Bd5 {[%emt 0:00:00]} 49. Nc3 {[%emt 0:00:00]} Bf7 {[%emt 0:00:00]} 50. Kg3 {[%emt 0:00:00]} Kd7 {[%emt 0:00:00]} 51. Ba3 {[%emt 0:00:00]} Ke6 {[%emt 0:00:00]} 52. Kf4 {[%emt 0:00:00]} Kf6 {[%emt 0:00:00]} 53. Bb2 {[%emt 0:00:00]} Kg6 {[%emt 0:00:00]} 54. g3 {[%emt 0:00:00]} Be6 {[%emt 0:00:00]} 55. Ke5 {[%emt 0:00:00]} Bc8 {[%emt 0:00:00]} 56. Ne2 {[%emt 0:00:00]} Bd7 {[%emt 0:00:00]} 57. Nf4+ {[%emt 0:00:00]} Kh6 {[%emt 0:00:00]} 58. Kf6 {[%emt 0:00:00]} Bc8 {[%emt 0:00:00]} 59. Ne6 {[%emt 0:00:00]} 1-0

[Event "Reykjavik Open 2025"]
[Site "Reykjavik"]
[Date "2025.04.10"]
[Round "3.20"]
[White "Jonsson, Johann"]
[Black "Lacroix, Romain"]
[Result "0-1"]
[Annotator "ChessBase"]
[ECO "D02"]
[WhiteElo "1890"]
[BlackElo "2101"]
[PlyCount "62"]
[EventDate "2025.04.09"]
[EventType "swiss"]
[EventCountry "ISL"]
[SourceTitle "playchess.com"]
[Source "ChessBase"]
[SourceQuality "1"]
[TimeControl "40/5400+30:1800+30"]

1. d4 {[%emt 0:00:07]} Nf6 {[%emt 0:00:10]} 2. Nf3 {[%emt 0:00:23]} e6 {[%emt 0:00:17]} 3. Bf4 {[%emt 0:00:29]} c5 {[%emt 0:00:24]} 4. e3 {[%emt 0:01:44]} Nc6 {[%emt 0:00:28]} 5. c3 {[%emt 0:01:45]} d5 {[%emt 0:00:34]} 6. Bd3 {[%emt 0:02:53]} Bd6 {[%emt 0:01:54]} 7. Bg3 {[%emt 0:01:30]} O-O {[%emt 0:01:27]} 8. O-O {[%emt 0:00:49]} b6 {[%emt 0:01:05]} 9. Re1 {[%emt 0:01:24]} Bb7 {[%emt 0:02:30]} 10. Nbd2 {[%emt 0:02:26]} Ne7 {[%emt 0:06:21]} 11. e4 {[%emt 0:08:33]} dxe4 {[%emt 0:09:38]} 12. Nxe4 {[%emt 0:00:27]} Nxe4 {[%emt 0:00:19]} 13. Bxe4 {[%emt 0:00:28]} Bxe4 {[%emt 0:00:19]} 14. Rxe4 {[%emt 0:00:20]} Nf5 {[%emt 0:01:29]} 15. Bxd6 {[%emt 0:06:20]} Qxd6 {[%emt 0:01:27]} 16. Qe2 {[%emt 0:04:37]} Rfd8 {[%emt 0:00:25]} 17. dxc5 {[%emt 0:02:39]} Qxc5 {[%emt 0:00:31]} 18. Qc4 {[%emt 0:06:33]} Qe7 {[%emt 0:21:11]} 19. Ree1 {[%emt 0:01:20]} Rac8 {[%emt 0:00:36]} 20. Qa4 {[%emt 0:00:53]} h5 {[%emt 0:02:46]} 21. Rad1 {[%emt 0:02:48]} g5 {[%emt 0:14:07]} 22. Qe4 {[%emt 0:10:59]} Qf6 {[%emt 0:03:16]} 23. h3 {[%emt 0:03:02]} Kg7 {[%emt 0:04:53]} 24. Ne5 {[%emt 0:05:40]} Rc7 {[%emt 0:07:56]} 25. Qe2 {[%emt 0:03:14]} Kh6 {[%emt 0:04:01]} 26. g4 {[%emt 0:08:51]} Rxd1 {[%emt 0:00:56]} 27. Qxd1 {[%emt 0:01:17]} Nh4 {[%emt 0:01:29]} 28. gxh5 {[%emt 0:06:18]} Kg7 {[%emt 0:02:32]} 29. Ng4 {[%emt 0:04:52]} Qf4 {[%emt 0:02:33]} 30. Re3 {[%emt 0:03:08]} Rc5 {[%emt 0:01:13]} 31. h6+ {[%emt 0:03:28]} Kh7 {[%emt 0:01:01]} 0-1

[Event "Reykjavik Open 2025"]
[Site "Reykjavik"]
[Date "2025.04.10"]
[Round "3.21"]
[White "Hafthorsson, Jon Ulfur"]
[Black "Beisteiner, Joachim"]
[Result "0-1"]
[Annotator "ChessBase"]
[ECO "D00"]
[WhiteElo "1872"]
[BlackElo "2097"]
[PlyCount "74"]
[EventDate "2025.04.09"]
[EventType "swiss"]
[EventCountry "ISL"]
[SourceTitle "playchess.com"]
[Source "ChessBase"]
[SourceQuality "1"]
[TimeControl "40/5400+30:1800+30"]

1. d4 {[%emt 0:00:52]} d5 {[%emt 0:02:58]} 2. Nc3 {[%emt 0:00:16]} Nf6 {[%emt 0:01:19]} 3. Bf4 {[%emt 0:00:06]} a6 {[%emt 0:02:24]} 4. Nf3 {[%emt 0:00:20]} e6 {[%emt 0:00:25]} 5. e3 {[%emt 0:00:39]} b5 {[%emt 0:01:29]} 6. Bd3 {[%emt 0:01:04]} Bb7 {[%emt 0:00:41]} 7. O-O {[%emt 0:00:52]} Nbd7 {[%emt 0:01:20]} 8. a3 {[%emt 0:02:12]} c5 {[%emt 0:02:02]} 9. dxc5 {[%emt 0:05:16]} Nxc5 {[%emt 0:07:47]} 10. h3 {[%emt 0:04:54]} Be7 {[%emt 0:02:04]} 11. b4 {[%emt 0:04:27]} Ncd7 {[%emt 0:03:18]} 12. Re1 {[%emt 0:02:40]} Rc8 {[%emt 0:01:15]} 13. Ne2 {[%emt 0:12:12]} Nb6 {[%emt 0:00:52]} 14. Be5 {[%emt 0:06:26]} O-O {[%emt 0:01:24]} 15. Ng3 {[%emt 0:01:53]} Nc4 {[%emt 0:02:57]} 16. Bxc4 {[%emt 0:05:37]} Rxc4 {[%emt 0:02:22]} 17. Nd2 {[%emt 0:01:53]} Rc8 {[%emt 0:02:01]} 18. e4 {[%emt 0:02:10]} a5 {[%emt 0:13:45]} 19. c3 {[%emt 0:03:11]} Nd7 {[%emt 0:01:07]} 20. Bd4 {[%emt 0:06:13]} dxe4 {[%emt 0:03:58]} 21. Ngxe4 {[%emt 0:05:03]} e5 {[%emt 0:02:05]} 22. Ba7 {[%emt 0:03:05]} f5 {[%emt 0:05:44]} 23. Qb3+ {[%emt 0:04:10]} Kh8 {[%emt 0:00:57]} 24. Ng3 {[%emt 0:02:01]} Qc7 {[%emt 0:04:36]} 25. bxa5 {[%emt 0:06:49]} Bxg2 {[%emt 0:04:48]} 26. Kxg2 {[%emt 0:03:36]} Qxa7 {[%emt 0:00:43]} 27. Qxb5 {[%emt 0:05:26]} Bc5 {[%emt 0:02:58]} 28. Rf1 {[%emt 0:00:45]} e4 {[%emt 0:08:29]} 29. Nb3 {[%emt 0:01:57]} Rb8 {[%emt 0:01:17]} 30. Qc4 {[%emt 0:00:07]} Bd6 {[%emt 0:05:06]} 31. Qd4 {[%emt 0:01:12]} Qc7 {[%emt 0:01:38]} 32. Nd2 {[%emt 0:01:31]} Bxg3 {[%emt 0:01:06]} 33. fxg3 {[%emt 0:00:23]} Ne5 {[%emt 0:00:34]} 34. Rab1 {[%emt 0:01:31]} Rbd8 {[%emt 0:00:38]} 35. Qe3 {[%emt 0:01:03]} Ng6 {[%emt 0:02:49]} 36. Nb3 {[%emt 0:01:24]} Rd3 {[%emt 0:00:45]} 37. Qc5 {[%emt 0:00:22]} Qxg3+ {[%emt 0:01:04]} 0-1